fUST/lending_fUST_20260120
["ID","MTS","AMOUNT","RATE_DAILY","PERIOD"]
[402764890,1768895844487,-501.42960814,0.00027397,120]
[402764891,1768895844536,-500.0,0.00027397,120]
[402764892,1768895844587,-500.0,0.00027397,120]
[402764893,1768895844641,-500.0,0.00027397,120]
[402764894,1768895844690,-501.35017889,0.00027397,120]
[402764895,1768895844740,-500.0,0.00027397,120]
[402764896,1768895844790,-500.0,0.00027397,120]
[402764897,1768895844838,-500.0,0.00027397,120]
[402764898,1768895844886,-500.0,0.00027397,120]
[402764899,1768895844938,-500.0,0.00027397,120]
[402764900,1768895844989,-364.66205083,0.00027397,120]
[402764901,1768895845039,-502.43223986,0.00027397,120]
[402764902,1768895845086,-500.0,0.00027397,120]
[402764903,1768895845132,-500.0,0.00027397,120]
[402764904,1768895845180,-475.03168961,0.00027397,120]
[402764905,1768895845226,-500.0,0.00027397,120]
[402764906,1768895845271,-597.48064958,0.00027397,120]
[402764907,1768895845317,-503.20297238,0.00027397,120]
[402764908,1768895845364,-500.0,0.00027397,120]
[402764909,1768895845410,-500.0,0.00027397,120]
[402764910,1768895845456,-500.0,0.00027397,120]
[402764911,1768895845501,-500.0,0.00027397,120]
[402764912,1768895845549,-500.0,0.00027397,120]
[402764913,1768895845595,-500.0,0.00027397,120]
[402764914,1768895845638,-236.88649726,0.00027397,120]
[402764915,1768895845681,-500.0,0.00027397,120]
[402764916,1768895845725,-501.93265175,0.00027397,120]
[402764917,1768895845769,-500.0,0.00027397,120]
[402764918,1768895845811,-363.40646351,0.00027397,120]
[402764919,1768895845854,-500.0,0.00027397,120]
[402764920,1768895845897,-501.12508422,0.00027397,120]
[402764921,1768895845963,-500.0,0.00027397,120]
[402764922,1768895846012,-502.23872775,0.00027397,120]
[402764923,1768895846070,-500.0,0.00027397,120]
[402764924,1768895846123,-500.0,0.00027397,120]
[402764925,1768895846177,-280.04770876,0.00027397,120]
[402764926,1768895846233,-501.22111119,0.00027397,120]
[402764927,1768895846283,-504.98942488,0.00027397,120]
[402764928,1768895846331,-500.0,0.00027397,120]
[402764929,1768895846376,-200.31055935,0.00027397,120]
[402764930,1768895846418,-501.0509802,0.00027397,120]
[402764931,1768895846465,-503.05952039,0.00027397,120]
[402764932,1768895846508,-506.74975158,0.00027397,120]
[402764933,1768895846552,-502.30729921,0.00027397,120]
[402764934,1768895846594,-502.7904471,0.00027397,120]
[402764935,1768895846636,-500.81959297,0.00027397,120]
[402764936,1768895846680,-500.48665318,0.00027397,120]
[402764937,1768895846723,-501.24437304,0.00027397,120]
[402764938,1768895846767,-502.14389185,0.00027397,120]
[402764939,1768895846811,-502.74074177,0.00027397,120]
[402764940,1768895846854,-519.48639106,0.00027397,120]
[402764941,1768895846897,-500.0,0.00027397,120]
[402764942,1768895846944,-500.0,0.00027397,120]
[402764943,1768895846991,-503.14284586,0.00027397,120]
[402764944,1768895847039,-500.0,0.00027397,120]
[402764945,1768895847086,-277.47976069,0.00027397,120]
[402764946,1768895847136,-500.0,0.00027397,120]
[402764947,1768895847184,-334.18918189,0.00027397,120]
[402764948,1768895847231,-500.0,0.00027397,120]
[402764949,1768895847283,-501.21232379,0.00027397,120]
[402764950,1768895847330,-500.0,0.00027397,120]
[402764951,1768895847376,-540.88380394,0.00027397,120]
[402764952,1768895847420,-500.0,0.00027397,120]
[402764953,1768895847464,-420.43505357,0.00027397,120]
[402764954,1768895847510,-502.16912802,0.00027397,120]
[402764955,1768895847557,-502.74101033,0.00027397,120]
[402764956,1768895847600,-643.67847183,0.00027397,120]
[402764957,1768895847643,-500.0,0.00027397,120]
[402764958,1768895847688,-500.0,0.00027397,120]
[402764959,1768895847731,-500.0,0.00027397,120]
[402764960,1768895847775,-501.74079565,0.00027397,120]
[402764961,1768895847819,-373.57451224,0.00027397,120]
[402764962,1768895847865,-602.63747062,0.00027397,120]
[402764963,1768895847922,-500.0,0.00027397,120]
[402764964,1768895847976,-502.1986352,0.00027397,120]
[402764965,1768895848027,-500.0,0.00027397,120]
[402764966,1768895848077,-500.0,0.00027397,120]
[402764967,1768895848129,-602.87335248,0.00027397,120]
[402764968,1768895848183,-502.62738158,0.00027397,120]
[402764969,1768895848238,-503.86958743,0.00027397,120]
[402764970,1768895848297,-509.29,0.00027397,120]
[402764971,1768895848503,-502.25932559,0.00027397,120]
[402764972,1768895848553,-500.0,0.00027397,120]
[402764973,1768895848602,-394.47782793,0.00027397,120]
[402764974,1768895848652,-500.0,0.00027397,120]
[402764975,1768895848704,-500.0,0.00027397,120]
[402764976,1768895848753,-264.08,0.00027397,120]
[402764977,1768895848803,-503.19311039,0.00027397,120]
[402764978,1768895848851,-500.0,0.00027397,120]
[402764979,1768895848910,-500.0,0.00027397,120]
[402764980,1768895848967,-500.0,0.00027397,120]
[402764981,1768895849020,-500.0,0.00027397,120]
[402764982,1768895849074,-500.0,0.00027397,120]
[402764983,1768895849124,-578.04854714,0.00027397,120]
[402764984,1768895849182,-500.0,0.00027397,120]
[402764985,1768895849235,-500.0,0.00027397,120]
[402764986,1768895849289,-418.31476053,0.00027397,120]
[402764987,1768895849341,-502.57222562,0.00027397,120]
[402764988,1768895849393,-276.77647106,0.00027397,120]
[402764989,1768895849446,-500.0,0.00027397,120]
[402764990,1768895849499,-500.0,0.00027397,120]
[402764991,1768895849551,-500.0,0.00027397,120]
[402764992,1768895849604,-500.0,0.00027397,120]
[402764993,1768895849652,-503.19235225,0.00027397,120]
[402764994,1768895849703,-500.0,0.00027397,120]
[402764995,1768895849752,-500.0,0.00027397,120]
[402764996,1768895849803,-500.0,0.00027397,120]
[402764997,1768895849852,-632.36,0.00027397,120]
[402764998,1768895849900,-500.0,0.00027397,120]
[402764999,1768895849949,-502.46627126,0.00027397,120]
[402765000,1768895850001,-500.0,0.00027397,120]
[402765001,1768895850050,-500.94709911,0.00027397,120]
[402765002,1768895850101,-599.42,0.00027397,120]
[402765003,1768895850157,-500.0,0.00027397,120]
[402765004,1768895850207,-502.69253212,0.00027397,120]
[402765005,1768895850256,-500.0,0.00027397,120]
[402765006,1768895850305,-503.36605225,0.00027397,120]
[402765007,1768895850352,-500.0,0.00027397,120]
[402765008,1768895850402,-500.0,0.00027397,120]
[402765009,1768895850449,-535.695448,0.00027397,120]
[402765010,1768895850498,-500.0,0.00027397,120]
[402765011,1768895850544,-614.5916161,0.00027397,120]
[402765012,1768895850589,-500.0,0.00027397,120]
[402765013,1768895850637,-500.0,0.00027397,120]
[402765014,1768895850685,-645.74,0.00027397,120]
[402765015,1768895850731,-545.22641553,0.00027397,120]
[402765016,1768895850776,-501.72813933,0.00027397,120]
[402765017,1768895850825,-500.0,0.00027397,120]
[402765018,1768895850874,-514.58997528,0.00027397,120]
[402765019,1768895850929,-500.0,0.00027397,120]
[402765020,1768895850979,-500.0,0.00027397,120]
[402765021,1768895851029,-503.68443257,0.00027397,120]
[402765022,1768895851078,-500.0,0.00027397,120]
[402765023,1768895851131,-500.0,0.00027397,120]
[402765024,1768895851183,-436.11244076,0.00027397,120]
[402765025,1768895851233,-500.0,0.00027397,120]
[402765026,1768895851282,-500.0,0.00027397,120]
[402765027,1768895851329,-500.0,0.00027397,120]
[402765028,1768895851374,-500.0,0.00027397,120]
[402765029,1768895851420,-500.0,0.00027397,120]
[402765030,1768895851464,-500.0,0.00027397,120]
[402765031,1768895851509,-587.55,0.00027397,120]
[402765032,1768895851552,-500.0,0.00027397,120]
[402765033,1768895851597,-489.43065661,0.00027397,120]
[402765034,1768895851642,-500.0,0.00027397,120]
[402765035,1768895851688,-500.0,0.00027397,120]
[402765036,1768895851734,-500.0,0.00027397,120]
[402765037,1768895851784,-500.0,0.00027397,120]
[402765038,1768895851833,-568.85941415,0.00027397,120]
[402765039,1768895851877,-500.0,0.00027397,120]
[402765040,1768895851925,-500.0,0.00027397,120]
[402765041,1768895851971,-462.6,0.00027397,120]
[402765042,1768895852021,-500.0,0.00027397,120]
[402765043,1768895852072,-500.0,0.00027397,120]
[402765044,1768895852121,-500.0,0.00027397,120]
[402765045,1768895852170,-500.0,0.00027397,120]
[402765046,1768895852225,-245.17385533,0.00027397,120]
[402765047,1768895852276,-501.7778782,0.00027397,120]
[402765048,1768895852326,-500.0,0.00027397,120]
[402765049,1768895852374,-500.0,0.00027397,120]
[402765050,1768895852421,-511.66,0.00027397,120]
[402765051,1768895852470,-504.68266146,0.00027397,120]
[402765052,1768895852519,-500.0,0.00027397,120]
[402765053,1768895852567,-500.0,0.00027397,120]
[402765054,1768895852616,-500.0,0.00027397,120]
[402765055,1768895852666,-212.18,0.00027397,120]
[402765056,1768895852713,-500.0,0.00027397,120]
[402765057,1768895852760,-633.87,0.00027397,120]
[402765058,1768895852807,-501.74204005,0.00027397,120]
[402765059,1768895852853,-500.0,0.00027397,120]
[402765060,1768895852902,-500.0,0.00027397,120]
[402765061,1768895852951,-500.0,0.00027397,120]
[402765062,1768895853003,-500.0,0.00027397,120]
[402765063,1768895853052,-374.74685402,0.00027397,120]
[402765064,1768895853105,-500.0,0.00027397,120]
[402765065,1768895853162,-500.0,0.00027397,120]
[402765066,1768895853360,-500.0,0.00027397,120]
[402765067,1768895853406,-443.61,0.00027397,120]
[402765068,1768895853454,-500.0,0.00027397,120]
[402765069,1768895853501,-500.0,0.00027397,120]
[402765070,1768895853547,-500.0,0.00027397,120]
[402765071,1768895853593,-500.0,0.00027397,120]
[402765072,1768895853640,-500.0,0.00027397,120]
[402765073,1768895853684,-351.75733586,0.00027397,120]
[402765074,1768895853727,-500.0,0.00027397,120]
[402765075,1768895853771,-500.0,0.00027397,120]
[402765076,1768895853816,-500.0,0.00027397,120]
[402765077,1768895853858,-500.0,0.00027397,120]
[402765078,1768895853904,-501.96221715,0.00027397,120]
[402765079,1768895853953,-500.0,0.00027397,120]
[402765080,1768895854003,-500.0,0.00027397,120]
[402765081,1768895854067,-502.01089716,0.00027397,120]
[402765082,1768895854124,-532.2665887,0.00027397,120]
[402765083,1768895854175,-500.0,0.00027397,120]
[402765084,1768895854229,-500.0,0.00027397,120]
[402765085,1768895854281,-500.0,0.00027397,120]
[402765086,1768895854335,-500.0,0.00027397,120]
[402765087,1768895854395,-500.0,0.00027397,120]
[402765088,1768895854458,-503.47638409,0.00027397,120]
[402765089,1768895854517,-568.74,0.00027397,120]
[402765090,1768895854574,-500.0,0.00027397,120]
[402765091,1768895854629,-173.89,0.00027397,120]
[402765092,1768895854686,-500.0,0.00027397,120]
[402765093,1768895854742,-500.0,0.00027397,120]
[402765094,1768895854795,-500.0,0.00027397,120]
[402765095,1768895854847,-500.0,0.00027397,120]
[402765096,1768895854901,-500.0,0.00027397,120]
[402765097,1768895854954,-500.0,0.00027397,120]
[402765098,1768895855007,-500.0,0.00027397,120]
[402765099,1768895855059,-500.0,0.00027397,120]
[402765100,1768895855111,-500.0,0.00027397,120]
[402765101,1768895855171,-500.0,0.00027397,120]
[402765102,1768895855225,-522.6,0.00027397,120]
[402765103,1768895855279,-500.0,0.00027397,120]
[402765104,1768895855331,-500.97716953,0.00027397,120]
[402765105,1768895855381,-500.0,0.00027397,120]
[402765106,1768895855429,-500.0,0.00027397,120]
[402765107,1768895855479,-500.0,0.00027397,120]
[402765108,1768895855532,-540.36,0.00027397,120]
[402765109,1768895855581,-500.0,0.00027397,120]
[402765110,1768895855629,-500.0,0.00027397,120]
[402765111,1768895855687,-500.0,0.00027397,120]
[402765112,1768895855737,-505.18,0.00027397,120]
[402765113,1768895855787,-500.0,0.00027397,120]
[402765114,1768895855836,-219.70728882,0.00027397,120]
[402765115,1768895855886,-500.0,0.00027397,120]
[402765116,1768895855936,-500.0,0.00027397,120]
[402765117,1768895855988,-500.0,0.00027397,120]
[402765118,1768895856040,-205.67783759,0.00027397,120]
[402765119,1768895856091,-500.0,0.00027397,120]
[402765120,1768895856154,-500.0,0.00027397,120]
[402765121,1768895856228,-500.0,0.00027397,120]
[402765122,1768895856290,-500.0,0.00027397,120]
[402765123,1768895856350,-500.0,0.00027397,120]
[402765124,1768895856411,-500.0,0.00027397,120]
[402765125,1768895856472,-500.0,0.00027397,120]
[402765126,1768895856528,-213.6,0.00027397,120]
[402765127,1768895856587,-501.39563233,0.00027397,120]
[402765128,1768895856651,-500.0,0.00027397,120]
[402765129,1768895856710,-500.0,0.00027397,120]
[402765130,1768895856771,-500.0,0.00027397,120]
[402765131,1768895856827,-500.0,0.00027397,120]
[402765132,1768895856880,-500.0,0.00027397,120]
[402765133,1768895856937,-409.46,0.00027397,120]
[402765134,1768895856986,-500.78778261,0.00027397,120]
[402765135,1768895857048,-500.0,0.00027397,120]
[402765136,1768895857104,-500.0,0.00027397,120]
[402765137,1768895857175,-619.82,0.00027397,120]
[402765138,1768895857241,-500.0,0.00027397,120]
[402765139,1768895857295,-500.0,0.00027397,120]
[402765140,1768895857350,-500.0,0.00027397,120]
[402765141,1768895857405,-500.0,0.00027397,120]
[402765143,1768895857460,-500.0,0.00027397,120]
[402765144,1768895857515,-500.0,0.00027397,120]
[402765145,1768895857569,-500.0,0.00027397,120]
[402765146,1768895857620,-500.0,0.00027397,120]
[402765147,1768895857671,-191.37,0.00027397,120]
[402765148,1768895857721,-500.0,0.00027397,120]
[402765149,1768895857772,-501.55448487,0.00027397,120]
[402765150,1768895857823,-500.0,0.00027397,120]
[402765151,1768895857872,-500.0,0.00027397,120]
[402765152,1768895857925,-500.0,0.00027397,120]
[402765153,1768895857977,-500.0,0.00027397,120]
[402765154,1768895858038,-500.0,0.00027397,120]
[402765155,1768895858093,-479.72,0.00027397,120]
[402765156,1768895858151,-500.0,0.00027397,120]
[402765157,1768895858204,-500.0,0.00027397,120]
[402765158,1768895858262,-500.0,0.00027397,120]
[402765159,1768895858313,-500.0,0.00027397,120]
[402765160,1768895858367,-500.0,0.00027397,120]
[402765161,1768895858418,-500.0,0.00027397,120]
[402765162,1768895858476,-172.65,0.00027397,120]
[402765163,1768895858532,-500.0,0.00027397,120]
[402765164,1768895858587,-500.0,0.00027397,120]
[402765165,1768895858641,-500.0,0.00027397,120]
[402765166,1768895858696,-441.88,0.00027397,120]
[402765167,1768895858751,-501.63070034,0.00027397,120]
[402765168,1768895858808,-500.0,0.00027397,120]
[402765169,1768895858863,-278.86220074,0.00027397,120]
[402765170,1768895858925,-508.91138227,0.00027397,120]
[402765171,1768895858983,-500.0,0.00027397,120]
[402765172,1768895859043,-500.0,0.00027397,120]
[402765173,1768895859098,-496.80628505,0.00027397,120]
[402765174,1768895859368,-500.0,0.00027397,120]
[402765175,1768895859418,-500.0,0.00027397,120]
[402765176,1768895859464,-500.0,0.00027397,120]
[402765177,1768895859511,-500.0,0.00027397,120]
[402765178,1768895859560,-599.41432477,0.00027397,120]
[402765179,1768895859610,-370.65,0.00027397,120]
[402765180,1768895859660,-501.32765744,0.00027397,120]
[402765181,1768895859713,-500.0,0.00027397,120]
[402765182,1768895859763,-500.0,0.00027397,120]
[402765183,1768895859813,-500.0,0.00027397,120]
[402765184,1768895859862,-500.0,0.00027397,120]
[402765185,1768895859913,-500.0,0.00027397,120]
[402765186,1768895859966,-212.18,0.00027397,120]
[402765187,1768895860015,-500.0,0.00027397,120]
[402765188,1768895860064,-500.0,0.00027397,120]
[402765189,1768895860117,-541.55525122,0.00027397,120]
[402765190,1768895860168,-523.700001,0.00027397,120]
[402765191,1768895860215,-500.0,0.00027397,120]
[402765192,1768895860261,-500.0,0.00027397,120]
[402765193,1768895860306,-501.64503583,0.00027397,120]
[402765194,1768895860350,-500.0,0.00027397,120]
[402765195,1768895860396,-500.0,0.00027397,120]
[402765196,1768895860439,-407.44,0.00027397,120]
[402765197,1768895860482,-500.0,0.00027397,120]
[402765198,1768895860529,-548.75743372,0.00027397,120]
[402765199,1768895860574,-500.0,0.00027397,120]
[402765200,1768895860617,-500.0,0.00027397,120]
[402765201,1768895860658,-500.0,0.00027397,120]
[402765202,1768895860702,-574.44,0.00027397,120]
[402765203,1768895860745,-500.0,0.00027397,120]
[402765204,1768895860788,-500.0,0.00027397,120]
[402765205,1768895860831,-500.0,0.00027397,120]
[402765206,1768895860870,-500.0,0.00027397,120]
[402765207,1768895860912,-500.0,0.00027397,120]
[402765208,1768895860955,-500.0,0.00027397,120]
[402765209,1768895860999,-500.0,0.00027397,120]
[402765210,1768895861044,-358.0,0.00027397,120]
[402765211,1768895861091,-500.0,0.00027397,120]
[402765212,1768895861136,-500.0,0.00027397,120]
[402765213,1768895861178,-500.0,0.00027397,120]
[402765214,1768895861221,-500.0,0.00027397,120]
[402765215,1768895861263,-500.0,0.00027397,120]
[402765216,1768895861308,-500.0,0.00027397,120]
[402765217,1768895861352,-500.0,0.00027397,120]
[402765218,1768895861393,-500.0,0.00027397,120]
[402765219,1768895861437,-609.42677167,0.00027397,120]
[402765220,1768895861481,-500.0,0.00027397,120]
[402765221,1768895861526,-507.78,0.00027397,120]
[402765222,1768895861569,-501.13461651,0.00027397,120]
[402765223,1768895861611,-471.58817526,0.00027397,120]
[402765224,1768895861653,-500.0,0.00027397,120]
[402765225,1768895861694,-500.0,0.00027397,120]
[402765226,1768895861739,-310.48,0.00027397,120]
[402765227,1768895861781,-500.0,0.00027397,120]
[402765228,1768895861824,-500.0,0.00027397,120]
[402765229,1768895861864,-500.0,0.00027397,120]
[402765230,1768895861905,-500.0,0.00027397,120]
[402765231,1768895861949,-500.0,0.00027397,120]
[402765232,1768895861992,-627.4,0.00027397,120]
[402765233,1768895862036,-500.0,0.00027397,120]
[402765234,1768895862080,-500.0,0.00027397,120]
[402765235,1768895862122,-500.0,0.00027397,120]
[402765236,1768895862168,-530.15364626,0.00027397,120]
[402765237,1768895862216,-500.0,0.00027397,120]
[402765238,1768895862262,-229.86,0.00027397,120]
[402765239,1768895862308,-507.31713294,0.00027397,120]
[402765240,1768895862352,-500.0,0.00027397,120]
[402765241,1768895862394,-500.0,0.00027397,120]
[402765242,1768895862438,-500.0,0.00027397,120]
[402765243,1768895862479,-500.0,0.00027397,120]
[402765244,1768895862530,-500.0,0.00027397,120]
[402765245,1768895862578,-500.0,0.00027397,120]
[402765246,1768895862625,-500.0,0.00027397,120]
[402765247,1768895862670,-500.0,0.00027397,120]
[402765248,1768895862715,-500.0,0.00027397,120]
[402765249,1768895862759,-500.0,0.00027397,120]
[402765250,1768895862804,-500.0,0.00027397,120]
[402765251,1768895862856,-500.0,0.00027397,120]
[402765252,1768895862897,-500.0,0.00027397,120]
[402765253,1768895862943,-237.58,0.00027397,120]
[402765254,1768895862988,-500.0,0.00027397,120]
[402765255,1768895863034,-500.0,0.00027397,120]
[402765256,1768895863077,-544.54793311,0.00027397,120]
[402765257,1768895863120,-500.0,0.00027397,120]
[402765258,1768895863165,-631.48,0.00027397,120]
[402765259,1768895863220,-500.0,0.00027397,120]
[402765260,1768895863271,-500.0,0.00027397,120]
[402765261,1768895863319,-206.16,0.00027397,120]
[402765262,1768895863362,-635.00817727,0.00027397,120]
[402765263,1768895863404,-500.0,0.00027397,120]
[402765264,1768895863446,-510.35628875,0.00027397,120]
[402765265,1768895863488,-500.0,0.00027397,120]
[402765266,1768895863658,-228.66586035,0.00027397,120]
[402765267,1768895863707,-500.0,0.00027397,120]
[402765268,1768895863753,-500.0,0.00027397,120]
[402765269,1768895863800,-500.0,0.00027397,120]
[402765270,1768895863849,-500.0,0.00027397,120]
[402765271,1768895863908,-630.43307483,0.00027397,120]
[402765272,1768895863967,-500.0,0.00027397,120]
[402765273,1768895864028,-500.0,0.00027397,120]
[402765274,1768895864082,-500.0,0.00027397,120]
[402765275,1768895864132,-223.07,0.00027397,120]
[402765276,1768895864186,-500.0,0.00027397,120]
[402765277,1768895864238,-500.0,0.00027397,120]
[402765278,1768895864288,-500.0,0.00027397,120]
[402765279,1768895864340,-500.0,0.00027397,120]
[402765280,1768895864390,-348.2,0.00027397,120]
[402765281,1768895864443,-500.0,0.00027397,120]
[402765282,1768895864501,-500.0,0.00027397,120]
[402765283,1768895864552,-510.9880447,0.00027397,120]
[402765284,1768895864608,-500.0,0.00027397,120]
[402765285,1768895864663,-157.53,0.00027397,120]
[402765286,1768895864719,-602.97,0.00027397,120]
[402765287,1768895864770,-500.0,0.00027397,120]
[402765288,1768895864822,-190.96429543,0.00027397,120]
[402765289,1768895864872,-500.0,0.00027397,120]
[402765290,1768895864925,-514.47494561,0.00027397,120]
[402765291,1768895864977,-500.0,0.00027397,120]
[402765292,1768895865027,-501.98562575,0.00027397,120]
[402765293,1768895865081,-500.0,0.00027397,120]
[402765294,1768895865133,-547.91432214,0.00027397,120]
[402765295,1768895865199,-500.0,0.00027397,120]
[402765296,1768895865250,-500.0,0.00027397,120]
[402765297,1768895865300,-500.0,0.00027397,120]
[402765298,1768895865351,-500.0,0.00027397,120]
[402765299,1768895865399,-510.06,0.00027397,120]
[402765300,1768895865445,-500.0,0.00027397,120]
[402765301,1768895865491,-500.0,0.00027397,120]
[402765302,1768895865536,-500.0,0.00027397,120]
[402765303,1768895865578,-640.78558989,0.00027397,120]
[402765304,1768895865621,-500.0,0.00027397,120]
[402765305,1768895865665,-500.0,0.00027397,120]
[402765306,1768895865709,-311.90535646,0.00027397,120]
[402765307,1768895865752,-500.0,0.00027397,120]
[402765308,1768895865793,-203.46,0.00027397,120]
[402765309,1768895865833,-500.0,0.00027397,120]
[402765310,1768895865875,-500.0,0.00027397,120]
[402765311,1768895865921,-500.0,0.00027397,120]
[402765312,1768895865965,-500.0,0.00027397,120]
[402765313,1768895866010,-500.0,0.00027397,120]
[402765314,1768895866054,-628.19698898,0.00027397,120]
[402765315,1768895866106,-500.0,0.00027397,120]
[402765316,1768895866158,-500.0,0.00027397,120]
[402765317,1768895866204,-500.0,0.00027397,120]
[402765318,1768895866249,-500.0,0.00027397,120]
[402765319,1768895866295,-500.0,0.00027397,120]
[402765320,1768895866343,-500.0,0.00027397,120]
[402765321,1768895866390,-374.24,0.00027397,120]
[402765322,1768895866440,-500.0,0.00027397,120]
[402765323,1768895866485,-507.32003283,0.00027397,120]
[402765324,1768895866532,-500.0,0.00027397,120]
[402765325,1768895866578,-599.53,0.00027397,120]
[402765326,1768895866627,-500.0,0.00027397,120]
[402765327,1768895866677,-500.0,0.00027397,120]
[402765328,1768895866725,-500.0,0.00027397,120]
[402765329,1768895866773,-355.89834543,0.00027397,120]
[402765330,1768895866821,-505.80282933,0.00027397,120]
[402765331,1768895866870,-500.0,0.00027397,120]
[402765332,1768895866921,-643.63314735,0.00027397,120]
[402765333,1768895866977,-503.80455945,0.00027397,120]
[402765334,1768895867035,-500.0,0.00027397,120]
[402765335,1768895867095,-501.99708711,0.00027397,120]
[402765336,1768895867151,-500.0,0.00027397,120]
[402765337,1768895867204,-500.0,0.00027397,120]
[402765338,1768895867257,-500.0,0.00027397,120]
[402765339,1768895867311,-500.0,0.00027397,120]
[402765340,1768895867367,-500.0,0.00027397,120]
[402765341,1768895867427,-425.72,0.00027397,120]
[402765342,1768895867488,-500.0,0.00027397,120]
[402765343,1768895867543,-500.0,0.00027397,120]
[402765344,1768895867607,-500.0,0.00027397,120]
[402765345,1768895867679,-541.52,0.00027397,120]
[402765346,1768895867737,-508.24,0.00027397,120]
[402765347,1768895867786,-500.0,0.00027397,120]
[402765348,1768895867831,-500.0,0.00027397,120]
[402765349,1768895867876,-500.0,0.00027397,120]
[402765350,1768895867925,-504.25092879,0.00027397,120]
[402765351,1768895867975,-500.0,0.00027397,120]
[402765352,1768895868023,-500.0,0.00027397,120]
[402765353,1768895868073,-500.0,0.00027397,120]
[402765354,1768895868121,-559.58332928,0.00027397,120]
[402765355,1768895868170,-500.0,0.00027397,120]
[402765356,1768895868222,-500.0,0.00027397,120]
[402765357,1768895868271,-502.31188666,0.00027397,120]
[402765358,1768895868319,-500.0,0.00027397,120]
[402765359,1768895868367,-500.0,0.00027397,120]
[402765360,1768895868558,-500.0,0.00027397,120]
[402765361,1768895868618,-539.04685959,0.00027397,120]
[402765362,1768895868672,-500.0,0.00027397,120]
[402765363,1768895868725,-500.0,0.00027397,120]
[402765364,1768895868778,-500.0,0.00027397,120]
[402765365,1768895868831,-500.0,0.00027397,120]
[402765366,1768895868882,-500.0,0.00027397,120]
[402765367,1768895868933,-500.0,0.00027397,120]
[402765368,1768895868984,-500.0,0.00027397,120]
[402765369,1768895869037,-500.0,0.00027397,120]
[402765370,1768895869085,-500.0,0.00027397,120]
[402765371,1768895869133,-352.22,0.00027397,120]
[402765372,1768895869186,-500.0,0.00027397,120]
[402765373,1768895869239,-500.0,0.00027397,120]
[402765374,1768895869292,-500.0,0.00027397,120]
[402765375,1768895869343,-500.0,0.00027397,120]
[402765376,1768895869389,-502.05431967,0.00027397,120]
[402765377,1768895869436,-500.0,0.00027397,120]
[402765378,1768895869481,-500.0,0.00027397,120]
[402765379,1768895869531,-500.0,0.00027397,120]
[402765380,1768895869582,-502.85845009,0.00027397,120]
[402765381,1768895869636,-501.04390723,0.00027397,120]
[402765382,1768895869689,-500.0,0.00027397,120]
[402765383,1768895869742,-500.0,0.00027397,120]
[402765384,1768895869796,-502.48080814,0.00027397,120]
[402765385,1768895869855,-500.0,0.00027397,120]
[402765386,1768895869917,-500.0,0.00027397,120]
[402765387,1768895869980,-500.0,0.00027397,120]
[402765388,1768895870041,-500.0,0.00027397,120]
[402765389,1768895870093,-500.0,0.00027397,120]
[402765390,1768895870151,-500.0,0.00027397,120]